fUST/lending_fUST_20251002
["ID","MTS","AMOUNT","RATE_DAILY","PERIOD"]
[388754472,1759348269267,-500.0,0.00022191,2]
[388754473,1759348269278,-2223.37,0.00022191,2]
[388754474,1759348269289,-500.0,0.00022191,2]
[388754475,1759348269300,-698.72,0.00022191,2]
[388754476,1759348269310,-813.06,0.00022191,2]
[388754477,1759348269321,-725.57,0.00022191,2]
[388754478,1759348269331,-677.05,0.00022191,2]
[388754479,1759348269343,-500.0,0.00022191,2]
[388754480,1759348269353,-500.0,0.00022191,2]
[388754481,1759348269364,-2312.62,0.00022191,2]
[388754482,1759348269375,-500.0,0.00022191,2]
[388754483,1759348269385,-500.0,0.00022191,2]
[388754484,1759348269395,-500.0,0.00022191,2]
[388754485,1759348269405,-500.0,0.00022191,2]
[388754486,1759348269414,-500.0,0.00022191,2]
[388754487,1759348269424,-500.0,0.00022191,2]
[388754488,1759348269435,-791.91,0.00022191,2]
[388754489,1759348269445,-1388.66,0.00022191,2]
[388754490,1759348269455,-1140.33,0.00022191,2]
[388754491,1759348269466,-458.0,0.00022192,2]
[388754492,1759348269475,-2500.0,0.0002246,2]
[388754493,1759348269486,-3500.0,0.0002246,2]
[388754494,1759348269496,-500.0,0.00022465,2]
[388754495,1759348269506,-500.0,0.00022465,2]
[388754496,1759348269517,-500.0,0.00022465,2]
[388754497,1759348269528,-500.0,0.00022465,2]
[388754498,1759348269537,-913.55,0.00022465,2]
[388754499,1759348269548,-500.0,0.00022465,2]
[388754500,1759348269559,-500.0,0.00022465,2]
[388754501,1759348269571,-510.51,0.00022465,2]
[388754502,1759348269582,-500.0,0.00022465,2]
[388754503,1759348269593,-500.0,0.00022465,2]
[388754504,1759348269603,-500.0,0.00022465,2]
[388754505,1759348269614,-313.26354679,0.00022465,2]
[388754506,1759348269624,-781.46,0.00022465,2]
[388754507,1759348269635,-577.46,0.00022465,2]
[388754508,1759348269644,-500.0,0.00022465,2]
[388754509,1759348269655,-834.52,0.00022465,2]
[388754510,1759348269666,-500.0,0.00022465,2]
[388754511,1759348269677,-500.0,0.00022465,2]
[388754512,1759348269687,-500.0,0.00022465,2]
[388754513,1759348269697,-392.61,0.00022465,2]
[388754514,1759348269707,-500.0,0.00022465,2]
[388754515,1759348269717,-500.0,0.00022465,2]
[388754516,1759348269728,-500.0,0.00022465,2]
[388754517,1759348269739,-817.94,0.00022465,2]
[388754518,1759348269749,-460.0,0.00022465,2]
[388754519,1759348269759,-1197.27,0.00022465,2]
[388754520,1759348269771,-1072.82,0.00022465,2]
[388754521,1759348269781,-1043.95,0.00022465,2]
[388754522,1759348269791,-500.0,0.00022465,2]
[388754523,1759348269802,-500.0,0.00022465,2]
[388754524,1759348269812,-996.21,0.00022465,2]
[388754525,1759348269825,-576.82,0.00022465,2]
[388754526,1759348269922,-2174.11,0.00022465,2]
[388754527,1759348269933,-1689.91,0.00022465,2]
[388754528,1759348269943,-606.37,0.00022465,2]
[388754529,1759348269953,-500.0,0.00022465,2]
[388754530,1759348269963,-646.84,0.00022465,2]
[388754531,1759348269974,-198.69093922,0.00022465,2]
[388754532,1759348269985,-4256.27,0.00022465,2]
[388754533,1759348269995,-500.0,0.00022465,2]
[388754534,1759348270011,-500.0,0.00022465,2]
[388754535,1759348270022,-500.0,0.00022465,2]
[388754536,1759348270032,-956.54,0.00022465,2]
[388754537,1759348270043,-500.0,0.00022465,2]
[388754538,1759348270055,-1404.42,0.00022465,2]
[388754539,1759348270065,-872.07,0.00022465,2]
[388754540,1759348270077,-974.89,0.00022465,2]
[388754541,1759348270089,-732.65,0.00022465,2]
[388754542,1759348270101,-500.0,0.00022465,2]
[388754543,1759348270113,-500.0,0.00022465,2]
[388754544,1759348270124,-812.54,0.00022465,2]
[388754545,1759348270136,-629.04,0.00022465,2]
[388754546,1759348270147,-546.41,0.00022465,2]
[388754547,1759348270159,-500.0,0.00022465,2]
[388754548,1759348270171,-501.68,0.00022465,2]
[388754549,1759348270184,-502.83,0.00022465,2]
[388754550,1759348270195,-500.0,0.00022465,2]
[388754551,1759348270206,-500.0,0.00022465,2]
[388754552,1759348270218,-1277.46,0.00022465,2]
[388754553,1759348270230,-552.96,0.00022465,2]
[388754554,1759348270241,-500.0,0.00022465,2]
[388754555,1759348270252,-500.0,0.00022465,2]
[388754556,1759348270263,-500.0,0.00022465,2]
[388754557,1759348270274,-500.0,0.00022465,2]
[388754558,1759348270284,-500.0,0.00022465,2]
[388754559,1759348270295,-2223.37,0.00022465,2]
[388754560,1759348270306,-500.0,0.00022465,2]
[388754561,1759348270317,-698.72,0.00022465,2]
[388754562,1759348270327,-813.06,0.00022465,2]
[388754563,1759348270337,-725.57,0.00022465,2]
[388754564,1759348270347,-677.05,0.00022465,2]
[388754565,1759348270358,-500.0,0.00022465,2]
[388754566,1759348270369,-500.0,0.00022465,2]
[388754567,1759348270379,-2312.62,0.00022465,2]
[388754568,1759348270389,-500.0,0.00022465,2]
[388754569,1759348270399,-500.0,0.00022465,2]
[388754570,1759348270409,-500.0,0.00022465,2]
[388754571,1759348270419,-635.21,0.00022465,2]
[388754572,1759348270429,-500.0,0.00022465,2]
[388754573,1759348270440,-791.91,0.00022465,2]
[388754574,1759348270450,-1388.66,0.00022465,2]
[388754575,1759348270460,-1140.33,0.00022465,2]
[388754576,1759348270470,-458.0,0.00022466,2]
[388754577,1759348270480,-1000.0,0.00022466,2]
[388754578,1759348270489,-800.0,0.00022472,2]
[388754579,1759348270498,-464.0,0.00022595,2]
[388754580,1759348270509,-660.0,0.00022631,2]
[388754581,1759348270519,-587.0,0.00022662,2]
[388754582,1759348270529,-464.0,0.00022668,2]
[388754583,1759348270539,-300.0,0.00022698,2]
[388754584,1759348270549,-3000.0,0.00022712,2]
[388754585,1759348270560,-500.0,0.00022739,2]
[388754586,1759348270570,-500.0,0.00022739,2]
[388754587,1759348270579,-500.0,0.00022739,2]
[388754588,1759348270590,-151.0,0.00022739,7]
[388754589,1759348270600,-529.86,0.00022739,2]
[388754590,1759348270610,-913.55,0.00022739,2]
[388754591,1759348270620,-500.0,0.00022739,2]
[388754592,1759348270629,-500.0,0.00022739,2]
[388754593,1759348270639,-510.51,0.00022739,2]
[388754594,1759348270649,-500.0,0.00022739,2]
[388754595,1759348270659,-585.62530248,0.00022739,2]
[388754596,1759348270670,-500.0,0.00022739,2]
[388754597,1759348270679,-781.46,0.00022739,2]
[388754598,1759348270689,-583.93194886,0.00022739,2]
[388754599,1759348270699,-834.52,0.00022739,2]
[388754600,1759348270709,-525.61,0.00022739,2]
[388754601,1759348270719,-500.0,0.00022739,2]
[388754602,1759348270728,-500.0,0.00022739,2]
[388754603,1759348270738,-500.0,0.00022739,2]
[388754604,1759348270748,-633.93,0.00022739,2]
[388754605,1759348270759,-500.0,0.00022739,2]
[388754606,1759348270769,-817.94,0.00022739,2]
[388754607,1759348270780,-1197.27,0.00022739,2]
[388754608,1759348270790,-1072.82,0.00022739,2]
[388754609,1759348270801,-1043.95,0.00022739,2]
[388754610,1759348270811,-176.59029908,0.00022739,2]
[388754611,1759348270821,-350.91,0.00022739,2]
[388754612,1759348270830,-996.21,0.00022739,2]
[388754613,1759348270840,-576.82,0.00022739,2]
[388754614,1759348270851,-2174.11,0.00022739,2]
[388754615,1759348270861,-1689.91,0.00022739,2]
[388754616,1759348270870,-167.41,0.00022739,2]
[388754617,1759348270880,-4256.27,0.00022739,2]
[388754618,1759348270890,-500.0,0.00022739,2]
[388754619,1759348270900,-500.0,0.00022739,2]
[388754620,1759348270909,-500.0,0.00022739,2]
[388754621,1759348270919,-956.54,0.00022739,2]
[388754622,1759348270928,-500.0,0.00022739,2]
[388754623,1759348270938,-1404.42,0.00022739,2]
[388754624,1759348270947,-872.07,0.00022739,2]
[388754625,1759348270957,-974.89,0.00022739,2]
[388754626,1759348270967,-732.65,0.00022739,2]
[388754627,1759348270976,-500.0,0.00022739,2]
[388754628,1759348270986,-523.38,0.00022739,2]
[388754629,1759348270997,-812.54,0.00022739,2]
[388754630,1759348271011,-629.04,0.00022739,2]
[388754631,1759348271021,-546.41,0.00022739,2]
[388754632,1759348271030,-620.04,0.00022739,2]
[388754633,1759348271040,-501.68,0.00022739,2]
[388754634,1759348271052,-502.83,0.00022739,2]
[388754635,1759348271062,-500.0,0.00022739,2]
[388754636,1759348271072,-500.0,0.00022739,2]
[388754637,1759348271082,-1277.46,0.00022739,2]
[388754638,1759348271092,-552.96,0.00022739,2]
[388754639,1759348271102,-460.0,0.00022739,2]
[388754640,1759348271111,-500.0,0.00022739,2]
[388754641,1759348271122,-500.0,0.00022739,2]
[388754642,1759348271131,-500.0,0.00022739,2]
[388754643,1759348271141,-604.98,0.00022739,2]
[388754644,1759348271151,-2223.37,0.00022739,2]
[388754645,1759348271161,-500.0,0.00022739,2]
[388754646,1759348271171,-698.72,0.00022739,2]
[388754647,1759348271182,-813.06,0.00022739,2]
[388754648,1759348271192,-725.57,0.00022739,2]
[388754649,1759348271202,-677.05,0.00022739,2]
[388754650,1759348271212,-500.0,0.00022739,2]
[388754651,1759348271222,-500.0,0.00022739,2]
[388754652,1759348271232,-2312.62,0.00022739,2]
[388754653,1759348271243,-330.08,0.00022739,2]
[388754654,1759348271253,-501.13,0.00022739,2]
[388754655,1759348271262,-500.0,0.00022739,2]
[388754656,1759348271273,-500.0,0.00022739,2]
[388754657,1759348271283,-791.91,0.00022739,2]
[388754658,1759348271292,-168.85955618,0.00022739,2]
[388754659,1759348271539,-554.19051158,0.00022739,2]
[388754660,1759348271678,-500.0,0.00019726,2]
[388754661,1759348271687,-494.99360089,0.0002,2]
[388754662,1759348271704,-1328.38639911,0.0002,2]
[388754663,1759348271714,-500.0,0.0002,2]
[388754664,1759348271724,-1823.38,0.00020273,2]
[388754665,1759348271733,-488.47,0.00020273,2]
[388754666,1759348271743,-1823.38,0.00020547,2]
[388754667,1759348271754,-1823.38,0.00020821,2]
[388754668,1759348271763,-1823.38,0.00021095,2]
[388754669,1759348271773,-1823.38,0.00021369,2]
[388754670,1759348271783,-1823.38,0.00021643,2]
[388754671,1759348271792,-1823.38,0.00021917,2]
[388754672,1759348271803,-665.60993224,0.00022739,2]
[388754673,1759348271812,-1140.33,0.00022739,2]
[388754674,1759348271821,-458.0,0.0002274,2]
[388754675,1759348271830,-464.0,0.00022753,2]
[388754676,1759348271840,-464.0,0.00022804,2]
[388754677,1759348271850,-5030.0,0.00022884,2]
[388754678,1759348271860,-979.0,0.00022884,2]
[388754679,1759348271870,-630.0,0.00022884,2]
[388754680,1759348271880,-2156.0,0.00022884,2]
[388754681,1759348271889,-150.0,0.00022884,2]
[388754682,1759348271898,-464.0,0.00022885,2]
[388754683,1759348271907,-464.0,0.00022903,2]
[388754684,1759348271916,-464.0,0.00022941,2]
[388754685,1759348271925,-464.0,0.00022952,2]
[388754686,1759348271935,-154.450076,0.00022997,4]
[388754687,1759348271944,-160.0,0.00023,2]
[388754688,1759348271955,-300.0,0.00023,2]
[388754689,1759348271964,-4000.0,0.00023,4]
[388754690,1759348271975,-500.0,0.00023008,2]
[388754691,1759348271984,-500.0,0.00023013,2]
[388754692,1759348271994,-579.65,0.00023013,2]
[388754693,1759348272007,-189.01,0.00023013,2]
[388754694,1759348272017,-913.55,0.00023013,2]
[388754695,1759348272027,-500.0,0.00023013,2]
[388754696,1759348272036,-379.39,0.00023013,2]
[388754697,1759348272047,-510.51,0.00023013,2]
[388754698,1759348272057,-500.0,0.00023013,2]
[388754699,1759348272067,-500.0,0.00023013,2]
[388754700,1759348272076,-781.46,0.00023013,2]
[388754701,1759348272088,-834.52,0.00023013,2]
[388754702,1759348272098,-500.0,0.00023013,2]
[388754703,1759348272107,-500.0,0.00023013,2]
[388754704,1759348272116,-561.11891418,0.00023013,2]
[388754705,1759348272126,-376.36,0.00023013,2]
[388754706,1759348272136,-817.94,0.00023013,2]
[388754707,1759348272145,-1197.27,0.00023013,2]
[388754708,1759348272155,-1072.82,0.00023013,2]
[388754709,1759348272164,-1043.95,0.00023013,2]
[388754710,1759348272174,-996.21,0.00023013,2]
[388754711,1759348272183,-576.82,0.00023013,2]
[388754712,1759348272192,-1689.91,0.00023013,2]
[388754713,1759348272202,-4256.27,0.00023013,2]
[388754714,1759348272212,-217.79,0.00023013,2]
[388754715,1759348272222,-500.0,0.00023013,2]
[388754716,1759348272232,-151.0,0.00023013,7]
[388754717,1759348272241,-500.0,0.00023013,2]
[388754718,1759348272251,-956.54,0.00023013,2]
[388754719,1759348272261,-395.86,0.00023013,2]
[388754720,1759348272270,-1404.42,0.00023013,2]
[388754721,1759348272280,-872.07,0.00023013,2]
[388754722,1759348272290,-151.0,0.00023013,7]
[388754723,1759348272300,-974.89,0.00023013,2]
[388754724,1759348272310,-732.65,0.00023013,2]
[388754725,1759348272320,-500.0,0.00023013,2]
[388754726,1759348272329,-812.54,0.00023013,2]
[388754727,1759348272339,-629.04,0.00023013,2]
[388754728,1759348272349,-546.41,0.00023013,2]
[388754729,1759348272359,-276.728226,0.00023013,7]
[388754730,1759348272369,-276.728226,0.00023013,7]
[388754731,1759348272379,-276.728226,0.00023013,7]
[388754732,1759348272388,-276.728226,0.00023013,7]
[388754733,1759348272397,-501.68,0.00023013,2]
[388754734,1759348272406,-502.83,0.00023013,2]
[388754735,1759348272416,-151.0,0.00023013,7]
[388754736,1759348272425,-151.0,0.00023013,7]
[388754737,1759348272435,-151.0,0.00023013,7]
[388754738,1759348272444,-176.319987,0.00023013,7]
[388754739,1759348272453,-151.0,0.00023013,7]
[388754740,1759348272463,-500.0,0.00023013,2]
[388754741,1759348272472,-500.0,0.00023013,2]
[388754742,1759348272481,-1277.46,0.00023013,2]
[388754743,1759348272490,-552.96,0.00023013,2]
[388754744,1759348272499,-500.0,0.00023013,2]
[388754745,1759348272508,-500.0,0.00023013,2]
[388754746,1759348272517,-358.86,0.00023013,2]
[388754747,1759348272527,-2223.37,0.00023013,2]
[388754748,1759348272536,-151.0,0.00023013,7]
[388754749,1759348272545,-500.0,0.00023013,2]
[388754750,1759348272556,-151.10690839,0.00023013,2]
[388754751,1759348272565,-698.72,0.00023013,2]
[388754752,1759348272574,-813.06,0.00023013,2]
[388754753,1759348272585,-725.57,0.00023013,2]
[388754754,1759348272594,-677.05,0.00023013,2]
[388754755,1759348272603,-500.0,0.00023013,2]
[388754756,1759348272613,-2312.62,0.00023013,2]
[388754757,1759348272623,-500.0,0.00023013,2]
[388754758,1759348272633,-151.0,0.00023013,7]
[388754759,1759348272643,-500.0,0.00023013,2]
[388754760,1759348272652,-470.88408646,0.00023013,2]
[388754761,1759348272664,-29.11591354,0.00023013,2]
[388754762,1759348272673,-406.67868851,0.00023013,2]
[388754763,1759348272689,-385.23131149,0.00023013,2]
[388754764,1759348272698,-1388.66,0.00023013,2]
[388754765,1759348272707,-151.0,0.00023013,7]
[388754766,1759348272716,-151.0,0.00023013,7]
[388754767,1759348272726,-1140.33,0.00023013,2]
[388754768,1759348272735,-151.0,0.00023013,7]
[388754769,1759348272745,-458.0,0.00023014,2]
[388754770,1759348272754,-261.3624052,0.00023014,2]
[388754771,1759348272764,-464.0,0.00023033,2]
[388754772,1759348272773,-154.450076,0.00023039,2]
[388754773,1759348272865,-286.2520735,0.00023162,2]
[388754774,1759348272876,-760.0,0.00023179,2]
[388754775,1759348272886,-800.0,0.00023221,2]
[388754776,1759348272895,-463.021,0.00023222,3]
[388754777,1759348272905,-5000.0,0.00023222,2]
[388754778,1759348272915,-450.0,0.00023246,2]
[388754779,1759348272924,-1435.46496311,0.00023256,2]
[388754780,1759348272934,-3500.0,0.0002326,2]
[388754781,1759348272943,-162.9,0.00023287,2]
[388754782,1759348272953,-913.55,0.00023287,2]
[388754783,1759348272962,-500.0,0.00023287,2]
[388754784,1759348272971,-510.51,0.00023287,2]
[388754785,1759348272981,-500.0,0.00023287,2]
[388754786,1759348272991,-500.0,0.00023287,2]
[388754787,1759348273001,-781.46,0.00023287,2]
[388754788,1759348273012,-834.52,0.00023287,2]
[388754789,1759348273022,-500.0,0.00023287,2]
[388754790,1759348273032,-286.07,0.00023287,2]
[388754791,1759348273041,-817.94,0.00023287,2]
[388754792,1759348273051,-1197.27,0.00023287,2]
[388754793,1759348273061,-1072.82,0.00023287,2]
[388754794,1759348273070,-1043.95,0.00023287,2]
[388754795,1759348273080,-151.0,0.00023287,7]
[388754796,1759348273090,-151.0,0.00023287,7]
[388754797,1759348273100,-191.578652,0.00023287,7]
[388754798,1759348273109,-996.21,0.00023287,2]
[388754799,1759348273119,-576.82,0.00023287,2]
[388754800,1759348273128,-1689.91,0.00023287,2]
[388754801,1759348273137,-281.18554396,0.00023287,2]
[388754802,1759348273147,-4256.27,0.00023287,2]
[388754803,1759348273156,-500.0,0.00023287,2]
[388754804,1759348273165,-500.0,0.00023287,2]
[388754805,1759348273175,-956.54,0.00023287,2]
[388754806,1759348273184,-1404.42,0.00023287,2]
[388754807,1759348273194,-872.07,0.00023287,2]
[388754808,1759348273204,-974.89,0.00023287,2]
[388754809,1759348273213,-732.65,0.00023287,2]
[388754810,1759348273223,-500.0,0.00023287,2]
[388754811,1759348273232,-812.54,0.00023287,2]
[388754812,1759348273241,-49.8284573,0.00023287,2]
[388754813,1759348273253,-494.0,0.00023287,2]
[388754814,1759348273557,-341.975598,0.00021095,2]
[388754815,1759348273567,-341.975598,0.00021095,2]
[388754816,1759348273577,-1249.0346382,0.00022191,2]
[388754817,1759348273590,-574.3453618,0.00022191,2]
[388754818,1759348273599,-1823.38,0.00022465,2]
[388754819,1759348273608,-1417.38295431,0.00022739,2]
[388754820,1759348273644,-91.49769494,0.00022739,2]
[388754821,1759348273796,-480.0,0.00019178,2]
[388754822,1759348273806,-500.0,0.00019178,2]
[388754823,1759348273816,-500.0,0.00019452,2]
[388754824,1759348273826,-341.975598,0.00021095,2]
[388754825,1759348273836,-341.975598,0.00021095,2]
[388754826,1759348273846,-314.49935075,0.00022739,2]
[388754827,1759348273855,-150.0,0.00022884,2]
[388754828,1759348273865,-150.0,0.00022884,2]
[388754829,1759348273874,-341.975598,0.00023013,7]
[388754830,1759348273884,-1823.38,0.00023013,2]
[388754831,1759348273893,-341.975598,0.00023013,7]
[388754832,1759348273903,-341.975598,0.00023013,7]
[388754833,1759348273912,-46.78753219,0.00023013,7]
[388754834,1759348274907,614.32560673,0.00019077,2]
[388754835,1759348274930,277.75627133,0.00019077,2]
[388754836,1759348275176,200.0,0.00033668,120]
[388754837,1759348288113,198.961158,0.00018188,2]
[388754838,1759348349383,9523.29257067,0.00018978,2]
[388754839,1759348349406,10000.01,0.00018978,2]
[388754840,1759348349428,10000.01,0.00018978,2]
[388754841,1759348349450,10000.01,0.00018978,2]
[388754842,1759348349472,10000.01,0.00018978,2]
[388754843,1759348349493,10000.01,0.00018978,2]
[388754844,1759348349515,10000.01,0.00018978,2]
[388754845,1759348349537,10000.01,0.00018978,2]
[388754846,1759348349558,10000.01,0.00018978,2]
[388754847,1759348349579,10000.01,0.00018978,2]
[388754848,1759348350460,-224.88304557,0.00018978,2]
[388754849,1759348367414,5000.0,0.00018978,2]
[388754850,1759348375086,-500.0,0.00018978,2]
[388754851,1759348375297,5000.0,0.00018978,2]
[388754852,1759348378009,-250.0,0.00018978,2]
[388754853,1759348379992,-620.77535671,0.00018978,2]
[388754854,1759348381484,-6931.66533308,0.00018978,2]
[388754855,1759348382506,0.01,0.00018977,2]
[388754856,1759348382531,299.99,0.00018977,2]
[388754857,1759348383859,-500.0,0.00018978,2]
[388754858,1759348385312,-408.13593994,0.00018978,2]
[388754859,1759348388064,-425.81135297,0.00018978,2]
[388754860,1759348391005,5000.0,0.00018978,2]
[388754861,1759348391428,-203.65425316,0.00018978,2]
[388754862,1759348395815,-230.32027283,0.00018978,2]
[388754863,1759348399368,-500.0,0.00018978,2]
[388754864,1759348399467,4700.02,0.00018978,2]
[388754865,1759348399488,299.98,0.00018978,2]
[388754866,1759348402903,-518.81396918,0.00018978,2]
[388754867,1759348404713,-152.0,0.00018978,2]
[388754868,1759348407115,250.2895087,0.00018315,2]
[388754869,1759348407391,-243.55137263,0.00018978,2]
[388754870,1759348409761,-160.54493585,0.00018978,2]
[388754871,1759348412329,-227.46344808,0.00018978,2]
[388754872,1759348414358,-227.03775526,0.00018978,2]
[388754873,1759348414716,5000.0,0.00018978,2]
[388754874,1759348417383,-210.46725918,0.00018978,2]
[388754875,1759348418968,-298.51234555,0.00018978,2]
[388754876,1759348420961,-590.509024,0.00018978,2]
[388754877,1759348422621,177.7,0.00018968,3]
[388754878,1759348423138,4272.0404913,0.00018978,2]
[388754879,1759348423161,727.9595087,0.00018978,2]
[388754880,1759348424215,-154.17596329,0.00018978,2]
[388754881,1759348426131,-200.07144948,0.00018978,2]
[388754882,1759348432289,-500.0,0.00018978,2]
[388754883,1759348433375,533.1,0.00018968,3]
[388754884,1759348433858,-436.63010988,0.00018978,2]
[388754885,1759348436349,-392.12091957,0.00018978,2]
[388754886,1759348438663,5000.0,0.00018978,2]
[388754887,1759348438940,-274.60612634,0.00018978,2]
[388754888,1759348440547,-193.92918174,0.00018978,2]
[388754889,1759348442544,-281.96898877,0.00018978,2]
[388754890,1759348442599,300.0,0.00018977,2]
[388754891,1759348443820,595.26,0.00018968,3]
[388754892,1759348445214,-242.47735657,0.00018978,2]
[388754893,1759348446603,5000.0,0.00018978,2]
[388754894,1759348447319,-699.35993462,0.00018978,2]
[388754895,1759348451410,-9584.22596791,0.00018978,2]
[388754896,1759348451697,-10000.01,0.00018978,2]
[388754897,1759348451941,-10000.01,0.00018978,2]
[388754898,1759348452177,-10000.01,0.00018978,2]
[388754899,1759348453268,-10000.01,0.00018978,2]
[388754900,1759348454273,-10000.01,0.00018978,2]
[388754901,1759348454640,-10000.01,0.00018978,2]
[388754902,1759348454856,-10000.01,0.00018978,2]
[388754903,1759348455096,-10000.01,0.00018978,2]
[388754904,1759348455277,-10000.01,0.00018978,2]
[388754906,1759348461734,5000.0,0.00018978,2]
[388754907,1759348469549,596.3748093,0.00018978,2]
[388754908,1759348472198,209.59389085,0.00018977,2]
[388754909,1759348472226,214.48661401,0.00018977,2]
[388754910,1759348473066,466.13666302,0.00018977,2]
[388754911,1759348473096,296.13030179,0.00018977,2]
[388754912,1759348473128,258.21219287,0.00018977,2]
[388754913,1759348473163,439.76495381,0.00018977,2]
[388754914,1759348473643,-498.55838868,0.00018978,2]
[388754915,1759348476856,-293.87486244,0.00018978,2]
[388754916,1759348479243,-490.76308097,0.00018978,2]
[388754917,1759348481403,-302.85233423,0.00018978,2]
[388754918,1759348483804,-525.07427452,0.00018978,2]
[388754919,1759348484939,2519.31057435,0.00018978,2]
[388754920,1759348484961,2480.68942565,0.00018978,2]
[388754921,1759348485967,-315.62546277,0.00018978,2]
[388754922,1759348487785,-206.61339169,0.00018978,2]
[388754923,1759348493214,-778.71641287,0.00018978,2]
[388754924,1759348496303,-302.75300495,0.00018978,2]
[388754925,1759348500318,-257.72616109,0.00018978,2]
[388754926,1759348501222,300.0,0.00018977,2]
[388754927,1759348501847,300.0,0.00018977,2]
[388754928,1759348501968,300.0,0.00018977,2]
[388754929,1759348501995,300.0,0.00018977,2]
[388754930,1759348502065,300.0,0.00018977,2]
[388754931,1759348503543,-731.50015451,0.00018978,2]
[388754932,1759348505425,1200.0,0.00018977,2]
[388754933,1759348505499,180.24,0.00018968,3]
[388754934,1759348506376,-224.97544208,0.00018978,2]
[388754935,1759348508036,691.76680532,0.00018978,2]
[388754936,1759348512045,-166.063822,0.00018978,2]
[388754937,1759348513972,-276.36097538,0.00018978,2]
[388754938,1759348516645,-315.68738622,0.00018978,2]
[388754939,1759348518722,-265.92257133,0.00018978,2]
[388754940,1759348522341,500.0,0.00027397,120]
[388754941,1759348524005,-212.30842414,0.00018978,2]
[388754942,1759348526206,-310.94846158,0.00018978,2]
[388754943,1759348529528,-281.99033271,0.00018978,2]
[388754944,1759348532066,-529.95798103,0.00018978,2]
[388754945,1759348562264,300.0,0.00018977,2]
[388754946,1759348577711,454.69045884,0.000189,2]
[388754947,1759348577750,200.0,0.00033665,120]
[388754948,1759348619920,214.68905516,0.000189,2]
[388754949,1759348622554,300.0,0.00018977,2]
[388754950,1759348673496,200.66,0.000189,2]
[388754951,1759348682451,300.0,0.00018977,2]
[388754952,1759348718803,2177.27425503,0.00018174,2]
[388754953,1759348718826,7822.72574497,0.00018174,2]
[388754954,1759348742300,300.0,0.00018977,2]
[388754955,1759348743315,-1877.28425503,0.00018978,2]
[388754956,1759348743328,-10000.01,0.00018978,2]
[388754957,1759348743402,-10000.01,0.00018978,2]
[388754958,1759348743585,-10000.01,0.00018978,2]
[388754959,1759348743708,-10000.01,0.00018978,2]
[388754960,1759348743827,-10000.01,0.00018978,2]
[388754961,1759348743939,-10000.01,0.00018978,2]
[388754962,1759348744083,-10000.01,0.00018978,2]
[388754963,1759348746666,-10000.01,0.00018978,2]
[388754964,1759348746782,-10000.01,0.00018978,2]
[388754965,1759348750617,-10000.01,0.00018978,2]
[388754966,1759348750739,-10000.01,0.00018978,2]
[388754967,1759348750869,-10000.01,0.00018978,2]
[388754968,1759348750985,-10000.01,0.00018978,2]
[388754969,1759348751141,-10000.01,0.00018978,2]
[388754970,1759348751278,-4927.11858695,0.00018978,2]
[388754971,1759348752836,-4672.83628518,0.00019,2]
[388754977,1759348754940,654.33742964,0.00019,2]